[Event "European Rapid Championship 2021"]
[Site "Katowice"]
[Date "2021.12.19"]
[Round "7.24"]
[White "Batashevs, Arsens"]
[Black "Teclaf, Pawel"]
[Result "0-1"]
[ECO "A00"]
[WhiteElo "2165"]
[BlackElo "2345"]
[Annotator "NA"]
[PlyCount "62"]
[EventDate "2021.12.18"]
[EventType "swiss"]
[EventCountry "POL"]
[SourceTitle "playchess.com"]
[Source "ChessBase"]
[SourceQuality "1"]
[TimeControl "900+10"]

1. g3 {[%emt 0:02:40]} d5 {[%emt 0:00:19]} 2. Bg2 {[%emt 0:00:03]} g6 {[%emt 0:
00:02]} 3. Nh3 {[%emt 0:01:25]} Nf6 {[%emt 0:00:37]} 4. O-O {[%emt 0:00:04]}
Bg7 {[%emt 0:00:03]} 5. f3 {[%emt 0:00:02]} O-O {[%emt 0:00:31]} 6. Nf2 {
[%emt 0:00:01]} c5 {[%emt 0:01:49]} 7. e4 {[%emt 0:01:14]} Nc6 {[%emt 0:00:36]}
8. c3 {[%emt 0:00:31]} b6 {[%emt 0:00:03]} 9. Na3 {[%emt 0:00:16]} dxe4 {
[%emt 0:01:23]} 10. fxe4 {[%emt 0:00:07]} Nd7 {[%emt 0:00:02]} 11. Nc2 {
[%emt 0:00:08]} Ba6 {[%emt 0:01:45]} 12. Re1 {[%emt 0:00:14]} c4 {[%emt 0:00:
55]} 13. b3 {[%emt 0:02:59]} b5 {[%emt 0:00:02]} 14. d4 {[%emt 0:00:27]} cxd3 {
[%emt 0:00:23]} 15. Qxd3 {[%emt 0:00:01]} Rc8 {[%emt 0:01:04]} 16. Bb2 {
[%emt 0:00:16]} Qb6 {[%emt 0:01:33]} 17. Qxd7 {[%emt 0:01:54]} Rcd8 {[%emt 0:
00:01]} 18. Qg4 {[%emt 0:00:09]} Rd2 {[%emt 0:00:02]} 19. Re2 {[%emt 0:00:26]}
Ne5 {[%emt 0:00:01]} 20. Rxd2 {[%emt 0:00:14]} Nxg4 {[%emt 0:00:02]} 21. Rad1 {
[%emt 0:05:12]} Rc8 {[%emt 0:02:19]} 22. Nb4 {[%emt 0:00:15]} Bb7 {[%emt 0:00:
11]} 23. Nd5 {[%emt 0:00:10]} Bxd5 {[%emt 0:00:04]} 24. exd5 {[%emt 0:00:01]}
Bh6 {[%emt 0:01:19]} 25. Re2 {[%emt 0:00:20]} Nxf2 {[%emt 0:00:03]} 26. Rxf2 {
[%emt 0:00:01]} Be3 {[%emt 0:00:02]} 27. Rdf1 {[%emt 0:00:04]} Qa5 {[%emt 0:00:
16]} 28. Bc1 {[%emt 0:00:11]} Bxf2+ {[%emt 0:00:29]} 29. Rxf2 {[%emt 0:00:01]}
Qxc3 {[%emt 0:00:02]} 30. Bh6 {[%emt 0:00:09]} Qd4 {[%emt 0:00:05]} 31. Kf1 {
[%emt 0:00:33]} Qd1# {[%emt 0:00:02]} 0-1

[Event "European Rapid Championship 2021"]
[Site "Katowice"]
[Date "2021.12.19"]
[Round "7.25"]
[White "Papasimakopoulos, Alexandros"]
[Black "Solys, Laimutis"]
[Result "1-0"]
[ECO "D31"]
[WhiteElo "2274"]
[BlackElo "2300"]
[Annotator "NA"]
[PlyCount "97"]
[EventDate "2021.12.18"]
[EventType "swiss"]
[EventCountry "POL"]
[SourceTitle "playchess.com"]
[Source "ChessBase"]
[SourceQuality "1"]
[TimeControl "900+10"]

1. d4 {[%emt 0:00:15]} d5 {[%emt 0:00:04]} 2. c4 {[%emt 0:00:06]} e6 {[%emt 0:
00:02]} 3. Nc3 {[%emt 0:00:05]} dxc4 {[%emt 0:00:06]} 4. e4 {[%emt 0:00:05]} c5
{[%emt 0:00:06]} 5. d5 {[%emt 0:00:13]} Nf6 {[%emt 0:00:08]} 6. Nf3 {[%emt 0:
00:40]} exd5 {[%emt 0:00:23]} 7. e5 {[%emt 0:00:28]} Nfd7 {[%emt 0:00:47]} 8.
Bg5 {[%emt 0:00:52]} Be7 {[%emt 0:00:10]} 9. Bxe7 {[%emt 0:00:02]} Qxe7 {
[%emt 0:00:02]} 10. Nxd5 {[%emt 0:00:02]} Qd8 {[%emt 0:00:07]} 11. Bxc4 {
[%emt 0:00:13]} O-O {[%emt 0:00:50]} 12. O-O {[%emt 0:00:19]} Nc6 {[%emt 0:00:
04]} 13. Re1 {[%emt 0:00:16]} Nb6 {[%emt 0:00:15]} 14. Nxb6 {[%emt 0:00:27]}
axb6 {[%emt 0:00:04]} 15. Qd6 {[%emt 0:00:58]} Bg4 {[%emt 0:03:04]} 16. Bd5 {
[%emt 0:02:44]} Qxd6 {[%emt 0:04:53]} 17. exd6 {[%emt 0:00:01]} Bxf3 {[%emt 0:
00:01]} 18. Bxf3 {[%emt 0:00:02]} Nd4 {[%emt 0:00:02]} 19. Bxb7 {[%emt 0:00:45]
} Rad8 {[%emt 0:00:11]} 20. Re7 {[%emt 0:00:23]} Rxd6 {[%emt 0:00:07]} 21. h3 {
[%emt 0:05:48]} g6 {[%emt 0:00:12]} 22. a4 {[%emt 0:00:28]} Kg7 {[%emt 0:00:46]
} 23. Ba6 {[%emt 0:00:05]} Kf6 {[%emt 0:01:29]} 24. Rae1 {[%emt 0:01:57]} Ne6 {
[%emt 0:00:48]} 25. Ra7 {[%emt 0:00:18]} Rfd8 {[%emt 0:00:41]} 26. Bc4 {
[%emt 0:00:05]} Rd1 {[%emt 0:00:05]} 27. Kf1 {[%emt 0:00:04]} Rxe1+ {[%emt 0:
00:16]} 28. Kxe1 {[%emt 0:00:01]} Rd6 {[%emt 0:00:01]} 29. h4 h5 {[%emt 0:01:
42]} 30. g3 {[%emt 0:00:25]} Nd8 {[%emt 0:00:16]} 31. Ke2 {[%emt 0:00:00]} Ne6
{[%emt 0:00:35]} 32. Ke3 {[%emt 0:00:04]} Nd8 {[%emt 0:00:05]} 33. b3 {[%emt 0:
00:02]} Ne6 {[%emt 0:00:04]} 34. Rb7 {[%emt 0:00:11]} Nd8 {[%emt 0:00:02]} 35.
Rc7 {[%emt 0:00:03]} Ne6 {[%emt 0:00:02]} 36. Rc8 {[%emt 0:00:11]} Nd8 {
[%emt 0:00:13]} 37. a5 {[%emt 0:00:02]} bxa5 {[%emt 0:00:27]} 38. Rxc5 {
[%emt 0:00:10]} Nc6 39. Ke4 {[%emt 0:00:20]} Rd4+ {[%emt 0:00:45]} 40. Ke3 {
[%emt 0:00:26]} Rd6 {[%emt 0:00:47]} 41. Rb5 {[%emt 0:00:10]} Nd4 {[%emt 0:00:
10]} 42. Rxa5 {[%emt 0:00:25]} Nf5+ {[%emt 0:00:16]} 43. Kf3 {[%emt 0:00:16]}
Rb6 {[%emt 0:00:17]} 44. Ke4 {[%emt 0:00:05]} Nd6+ {[%emt 0:00:08]} 45. Kd5 {
[%emt 0:00:07]} Nf5 {[%emt 0:00:03]} 46. Ra6 {[%emt 0:00:22]} Rxa6 {[%emt 0:00:
15]} 47. Bxa6 {[%emt 0:00:02]} Ke7 {[%emt 0:00:01]} 48. b4 {[%emt 0:00:08]} f6
{[%emt 0:00:02]} 49. Bd3 {[%emt 0:00:16]} 1-0

[Event "European Rapid Championship 2021"]
[Site "Katowice"]
[Date "2021.12.19"]
[Round "7.25"]
[White "Kozlowski, Michal"]
[Black "Sliwicka, Alicja"]
[Result "1-0"]
[ECO "B59"]
[WhiteElo "2047"]
[BlackElo "2303"]
[Annotator "NA"]
[PlyCount "133"]
[EventDate "2021.12.18"]
[EventType "swiss"]
[EventCountry "POL"]
[SourceTitle "playchess.com"]
[Source "ChessBase"]
[SourceQuality "1"]
[TimeControl "900+10"]

1. e4 {[%emt 0:00:02]} c5 {[%emt 0:00:01]} 2. Nf3 {[%emt 0:00:02]} Nc6 {
[%emt 0:00:02]} 3. d4 {[%emt 0:00:03]} cxd4 {[%emt 0:00:02]} 4. Nxd4 {[%emt 0:
00:02]} Nf6 {[%emt 0:00:02]} 5. Nc3 {[%emt 0:00:02]} d6 {[%emt 0:00:02]} 6. Be2
{[%emt 0:01:04]} e5 {[%emt 0:00:04]} 7. Nb3 {[%emt 0:00:10]} Be6 {[%emt 0:00:
28]} 8. Bg5 {[%emt 0:00:48]} Be7 {[%emt 0:00:05]} 9. Bxf6 {[%emt 0:00:02]} Bxf6
{[%emt 0:00:30]} 10. Nd5 {[%emt 0:00:22]} O-O {[%emt 0:00:24]} 11. O-O {
[%emt 0:00:10]} a5 {[%emt 0:00:57]} 12. a4 {[%emt 0:00:43]} Nb4 {[%emt 0:01:19]
} 13. Nxf6+ {[%emt 0:01:42]} Qxf6 {[%emt 0:00:13]} 14. c3 {[%emt 0:00:33]} Nc6
{[%emt 0:00:06]} 15. Nd2 {[%emt 0:02:02]} Rad8 {[%emt 0:01:49]} 16. Bc4 {
[%emt 0:01:47]} Ne7 {[%emt 0:01:11]} 17. Qb3 {[%emt 0:03:48]} d5 {[%emt 0:02:
08]} 18. exd5 {[%emt 0:00:01]} Nxd5 {[%emt 0:00:49]} 19. Ne4 {[%emt 0:01:40]}
Qg6 {[%emt 0:00:22]} 20. Ng3 {[%emt 0:00:04]} Nf4 {[%emt 0:03:13]} 21. Bxe6 {
[%emt 0:00:09]} Qxe6 {[%emt 0:00:10]} 22. Qxe6 {[%emt 0:00:45]} Nxe6 {[%emt 0:
00:03]} 23. Rfd1 {[%emt 0:00:21]} Nc5 {[%emt 0:00:12]} 24. b4 {[%emt 0:01:10]}
axb4 {[%emt 0:00:45]} 25. cxb4 {[%emt 0:00:01]} Rxd1+ {[%emt 0:00:26]} 26. Rxd1
{[%emt 0:00:01]} Nxa4 {[%emt 0:00:03]} 27. Rd7 {[%emt 0:00:02]} b6 {[%emt 0:00:
49]} 28. Re7 {[%emt 0:00:04]} Rc8 {[%emt 0:00:49]} 29. h3 {[%emt 0:00:58]} Kf8
{[%emt 0:01:03]} 30. Rxe5 {[%emt 0:00:09]} Rc1+ {[%emt 0:00:03]} 31. Kh2 {
[%emt 0:00:04]} Rb1 {[%emt 0:01:25]} 32. Re4 {[%emt 0:00:45]} Rb2 {[%emt 0:00:
20]} 33. Kg1 {[%emt 0:00:28]} g6 {[%emt 0:00:08]} 34. Rd4 {[%emt 0:00:33]} Nc3
{[%emt 0:00:15]} 35. Rc4 {[%emt 0:00:10]} Na2 {[%emt 0:00:07]} 36. Ne4 {
[%emt 0:00:07]} Rb1+ {[%emt 0:00:14]} 37. Kh2 {[%emt 0:00:02]} Rxb4 {[%emt 0:
00:06]} 38. Rc8+ {[%emt 0:00:08]} Kg7 {[%emt 0:00:18]} 39. Nd6 {[%emt 0:00:10]}
Rb2 {[%emt 0:00:18]} 40. Kg3 {[%emt 0:00:12]} Kf6 {[%emt 0:00:17]} 41. Rc7 {
[%emt 0:00:06]} Ke6 {[%emt 0:00:04]} 42. Nxf7 {[%emt 0:00:08]} b5 {[%emt 0:00:
02]} 43. Ng5+ {[%emt 0:00:06]} Kd6 {[%emt 0:00:01]} 44. Rxh7 {[%emt 0:00:04]}
b4 {[%emt 0:00:03]} 45. Ne4+ {[%emt 0:00:19]} Kc6 {[%emt 0:00:02]} 46. Rg7 {
[%emt 0:00:05]} Re2 {[%emt 0:00:33]} 47. Kf3 {[%emt 0:00:26]} Re1 {[%emt 0:00:
01]} 48. Rxg6+ {[%emt 0:00:04]} Kb5 {[%emt 0:00:16]} 49. Rg8 {[%emt 0:00:11]}
Nc1 {[%emt 0:00:23]} 50. h4 {[%emt 0:00:14]} Rh1 {[%emt 0:00:05]} 51. g3 {
[%emt 0:00:10]} Rd1 {[%emt 0:00:17]} 52. h5 {[%emt 0:00:11]} Rd3+ {[%emt 0:00:
02]} 53. Kg4 {[%emt 0:00:15]} b3 {[%emt 0:00:02]} 54. Rb8+ {[%emt 0:00:08]} Ka5
{[%emt 0:00:18]} 55. h6 {[%emt 0:00:12]} Rd7 {[%emt 0:00:12]} 56. Nc5 {[%emt 0:
00:09]} Rd4+ {[%emt 0:00:20]} 57. Kf3 {[%emt 0:00:09]} Rd5 {[%emt 0:00:06]} 58.
Nxb3+ {[%emt 0:00:05]} Nxb3 {[%emt 0:00:02]} 59. Rxb3 {[%emt 0:00:02]} Rh5 {
[%emt 0:00:02]} 60. Kg4 {[%emt 0:00:03]} Rxh6 {[%emt 0:00:01]} 61. f4 {[%emt 0:
00:01]} Ka4 {[%emt 0:00:01]} 62. Rb8 {[%emt 0:00:01]} Ka5 {[%emt 0:00:02]} 63.
Kg5 {[%emt 0:00:02]} Rh1 {[%emt 0:00:04]} 64. f5 {[%emt 0:00:01]} Ka6 {[%emt 0:
00:03]} 65. f6 {[%emt 0:00:02]} Ka7 {[%emt 0:00:02]} 66. Rb4 {[%emt 0:00:03]}
Rf1 {[%emt 0:00:03]} 67. Rf4 {[%emt 0:00:01]} 1-0

[Event "European Rapid Championship 2021"]
[Site "Katowice"]
[Date "2021.12.19"]
[Round "7.26"]
[White "Pacuszka, Tomasz"]
[Black "Bjerre, Jonas Buhl"]
[Result "0-1"]
[ECO "B20"]
[WhiteElo "2193"]
[BlackElo "2330"]
[Annotator "NA"]
[PlyCount "60"]
[EventDate "2021.12.18"]
[EventType "swiss"]
[EventCountry "POL"]
[SourceTitle "playchess.com"]
[Source "ChessBase"]
[SourceQuality "1"]
[TimeControl "900+10"]

1. e4 {[%emt 0:00:01]} c5 {[%emt 0:00:01]} 2. Be2 {[%emt 0:00:01]} Nc6 {
[%emt 0:00:13]} 3. f4 {[%emt 0:00:03]} e6 {[%emt 0:00:10]} 4. Nf3 {[%emt 0:00:
03]} d5 {[%emt 0:00:04]} 5. d3 {[%emt 0:00:02]} Bd6 {[%emt 0:00:20]} 6. O-O {
[%emt 0:00:24]} Nge7 {[%emt 0:00:02]} 7. c3 {[%emt 0:01:17]} f6 {[%emt 0:00:41]
} 8. Na3 {[%emt 0:01:20]} O-O {[%emt 0:00:09]} 9. Qe1 {[%emt 0:00:11]} b6 {
[%emt 0:00:07]} 10. Qg3 {[%emt 0:00:48]} Ba6 {[%emt 0:00:19]} 11. Re1 {[%emt 0:
00:11]} Qc7 {[%emt 0:01:14]} 12. Qh3 {[%emt 0:00:09]} Kh8 {[%emt 0:01:18]} 13.
g3 {[%emt 0:00:11]} c4 {[%emt 0:00:41]} 14. e5 {[%emt 0:02:33]} Bxa3 {[%emt 0:
01:09]} 15. bxa3 {[%emt 0:00:04]} cxd3 {[%emt 0:00:03]} 16. exf6 {[%emt 0:00:
17]} Rxf6 {[%emt 0:00:37]} 17. Bf1 {[%emt 0:00:09]} h6 {[%emt 0:02:17]} 18. c4
{[%emt 0:00:36]} Bxc4 {[%emt 0:00:17]} 19. Bb2 {[%emt 0:00:04]} d4 {[%emt 0:00:
15]} 20. Nxd4 {[%emt 0:00:47]} Nxd4 {[%emt 0:00:04]} 21. Bxd4 {[%emt 0:00:03]}
Rg6 {[%emt 0:00:22]} 22. Rec1 {[%emt 0:02:54]} Rd8 {[%emt 0:00:25]} 23. Be5 {
[%emt 0:00:41]} Qc5+ {[%emt 0:00:33]} 24. Kh1 {[%emt 0:00:03]} Nc6 {[%emt 0:01:
39]} 25. Qh4 {[%emt 0:00:59]} Bd5+ {[%emt 0:00:19]} 26. Bg2 {[%emt 0:00:01]}
Bxg2+ {[%emt 0:00:08]} 27. Kxg2 {[%emt 0:00:01]} Qd5+ {[%emt 0:00:02]} 28. Kg1
{[%emt 0:00:10]} Nxe5 {[%emt 0:00:05]} 29. fxe5 {[%emt 0:00:01]} d2 {[%emt 0:
00:06]} 30. Rf1 {[%emt 0:00:11]} Rg5 {[%emt 0:00:12]} 0-1

[Event "European Rapid Championship 2021"]
[Site "Katowice"]
[Date "2021.12.19"]
[Round "7.26"]
[White "Budzisz, Adrian"]
[Black "Chojnacki, Slawomir"]
[Result "1-0"]
[ECO "B13"]
[WhiteElo "1985"]
[BlackElo "2165"]
[Annotator "NA"]
[PlyCount "99"]
[EventDate "2021.12.18"]
[EventType "swiss"]
[EventCountry "POL"]
[SourceTitle "playchess.com"]
[Source "ChessBase"]
[SourceQuality "1"]
[TimeControl "900+10"]

1. e4 {[%emt 0:00:07]} c6 {[%emt 0:00:10]} 2. d4 {[%emt 0:00:02]} d5 {[%emt 0:
00:06]} 3. exd5 {[%emt 0:00:02]} cxd5 {[%emt 0:00:02]} 4. Bd3 {[%emt 0:00:02]}
Nc6 {[%emt 0:00:01]} 5. c3 {[%emt 0:00:01]} Nf6 {[%emt 0:00:01]} 6. Bf4 {
[%emt 0:00:10]} g6 {[%emt 0:00:03]} 7. Nf3 {[%emt 0:00:03]} Bf5 {[%emt 0:00:02]
} 8. O-O {[%emt 0:00:09]} e6 {[%emt 0:00:01]} 9. Ne5 {[%emt 0:00:43]} Bd6 {
[%emt 0:00:08]} 10. Re1 {[%emt 0:00:39]} O-O {[%emt 0:00:11]} 11. Bxf5 {
[%emt 0:01:06]} exf5 {[%emt 0:00:46]} 12. Qb3 {[%emt 0:00:15]} Qb6 {[%emt 0:00:
20]} 13. Qxb6 {[%emt 0:00:25]} axb6 {[%emt 0:00:02]} 14. Nxg6 {[%emt 0:00:05]}
hxg6 {[%emt 0:00:24]} 15. Bxd6 {[%emt 0:00:03]} Rfe8 {[%emt 0:00:03]} 16. Rxe8+
{[%emt 0:00:23]} Rxe8 {[%emt 0:00:04]} 17. Kf1 {[%emt 0:00:05]} Na5 {[%emt 0:
00:33]} 18. Nd2 {[%emt 0:00:15]} Ne4 {[%emt 0:00:05]} 19. Nxe4 {[%emt 0:00:11]}
fxe4 {[%emt 0:00:02]} 20. b3 {[%emt 0:00:29]} b5 {[%emt 0:00:10]} 21. Ke2 {
[%emt 0:00:29]} Ra8 {[%emt 0:00:04]} 22. Rc1 {[%emt 0:00:14]} Ra6 {[%emt 0:00:
07]} 23. Bc5 {[%emt 0:00:26]} f5 {[%emt 0:00:10]} 24. Ke3 {[%emt 0:00:08]} Kf7
{[%emt 0:00:08]} 25. h4 {[%emt 0:00:57]} Ra8 {[%emt 0:00:12]} 26. Kf4 {[%emt 0:
00:21]} Kf6 {[%emt 0:00:06]} 27. Bd6 {[%emt 0:00:35]} Nc6 {[%emt 0:00:07]} 28.
Rc2 {[%emt 0:01:00]} Nd8 {[%emt 0:01:22]} 29. Ke3 {[%emt 0:01:04]} Ke6 {
[%emt 0:00:22]} 30. Bc5 {[%emt 0:00:27]} Nc6 {[%emt 0:01:00]} 31. g3 {[%emt 0:
00:12]} Nd8 {[%emt 0:00:48]} 32. Rb2 {[%emt 0:00:25]} Rc8 {[%emt 0:00:40]} 33.
a4 {[%emt 0:01:15]} b6 {[%emt 0:00:29]} 34. Bxb6 {[%emt 0:00:50]} Rxc3+ {
[%emt 0:00:03]} 35. Ke2 {[%emt 0:00:01]} Nb7 {[%emt 0:00:33]} 36. a5 {[%emt 0:
00:11]} Nd6 {[%emt 0:02:06]} 37. Bc5 {[%emt 0:01:39]} Ne8 {[%emt 0:00:41]} 38.
a6 {[%emt 0:00:15]} Nc7 {[%emt 0:00:01]} 39. a7 {[%emt 0:00:01]} Kd7 {[%emt 0:
00:25]} 40. Ra2 {[%emt 0:00:06]} Na8 {[%emt 0:00:02]} 41. b4 {[%emt 0:00:09]}
Rb3 {[%emt 0:00:29]} 42. Ra6 {[%emt 0:02:35]} Rb2+ {[%emt 0:00:02]} 43. Kf1 {
[%emt 0:00:03]} Rb1+ {[%emt 0:00:02]} 44. Kg2 {[%emt 0:00:07]} Rb2 {[%emt 0:00:
02]} 45. Rxg6 {[%emt 0:00:11]} e3 {[%emt 0:00:01]} 46. Rg7+ {[%emt 0:00:02]}
Kd8 {[%emt 0:00:02]} 47. Rg8+ {[%emt 0:00:13]} Kd7 {[%emt 0:00:10]} 48. Rxa8 {
[%emt 0:00:07]} Ra2 {[%emt 0:00:08]} 49. Rf8 {[%emt 0:00:23]} e2 {[%emt 0:00:
10]} 50. Rf7+ {[%emt 0:00:01]} 1-0

[Event "European Rapid Championship 2021"]
[Site "Katowice"]
[Date "2021.12.19"]
[Round "7.27"]
[White "Zylka, Stanislaw"]
[Black "Andrejczuk, Beata"]
[Result "1-0"]
[ECO "B01"]
[WhiteElo "2367"]
[BlackElo "1925"]
[Annotator "NA"]
[PlyCount "95"]
[EventDate "2021.12.18"]
[EventType "swiss"]
[EventCountry "POL"]
[SourceTitle "playchess.com"]
[Source "ChessBase"]
[SourceQuality "1"]
[TimeControl "900+10"]

1. e4 {[%emt 0:00:02]} d5 {[%emt 0:00:01]} 2. exd5 {[%emt 0:00:03]} Qxd5 {
[%emt 0:00:02]} 3. Nc3 {[%emt 0:00:02]} Qa5 {[%emt 0:00:03]} 4. d4 {[%emt 0:00:
07]} c6 {[%emt 0:00:01]} 5. Nf3 {[%emt 0:00:46]} Nf6 {[%emt 0:00:03]} 6. Ne5 {
[%emt 0:00:22]} Be6 {[%emt 0:02:10]} 7. Qd3 {[%emt 0:04:03]} Nbd7 {[%emt 0:00:
44]} 8. Nc4 {[%emt 0:00:02]} Qc7 {[%emt 0:02:38]} 9. g3 {[%emt 0:00:11]} Nb6 {
[%emt 0:00:38]} 10. Bf4 {[%emt 0:02:00]} Qd8 {[%emt 0:01:12]} 11. Nxb6 {
[%emt 0:00:48]} Qxb6 {[%emt 0:00:09]} 12. Bg2 {[%emt 0:00:41]} O-O-O {[%emt 0:
00:48]} 13. O-O-O {[%emt 0:00:04]} g6 {[%emt 0:00:23]} 14. Rhe1 {[%emt 0:00:26]
} Bg7 {[%emt 0:00:26]} 15. Be5 {[%emt 0:00:01]} h5 {[%emt 0:00:56]} 16. h4 {
[%emt 0:00:13]} Rhe8 {[%emt 0:01:19]} 17. Kb1 {[%emt 0:00:02]} Bh8 {[%emt 0:00:
09]} 18. a3 {[%emt 0:00:13]} Nd7 {[%emt 0:00:51]} 19. Bf4 {[%emt 0:01:08]} Qa5
{[%emt 0:00:31]} 20. Rxe6 {[%emt 0:00:41]} fxe6 {[%emt 0:00:05]} 21. Bh3 {
[%emt 0:00:21]} Nf8 {[%emt 0:00:37]} 22. Qe4 {[%emt 0:00:57]} Rd7 {[%emt 0:00:
46]} 23. Rd3 {[%emt 0:00:40]} Red8 {[%emt 0:00:24]} 24. Ne2 {[%emt 0:03:52]}
Qd5 {[%emt 0:00:20]} 25. Qxd5 {[%emt 0:00:08]} exd5 {[%emt 0:00:46]} 26. Bxd7+
{[%emt 0:00:11]} Kxd7 {[%emt 0:00:06]} 27. c3 {[%emt 0:00:05]} Re8 {[%emt 0:00:
27]} 28. Bh6 {[%emt 0:00:27]} e5 {[%emt 0:00:31]} 29. Rf3 {[%emt 0:00:19]} Ne6
{[%emt 0:00:26]} 30. dxe5 {[%emt 0:00:02]} Bxe5 {[%emt 0:00:03]} 31. Kc2 {
[%emt 0:00:07]} Kd6 {[%emt 0:01:05]} 32. b4 {[%emt 0:00:22]} c5 {[%emt 0:00:26]
} 33. Rf7 {[%emt 0:00:24]} cxb4 {[%emt 0:00:44]} 34. axb4 {[%emt 0:00:04]} Nd8
{[%emt 0:00:13]} 35. Rh7 {[%emt 0:00:17]} a6 {[%emt 0:00:24]} 36. Bf4 {[%emt 0:
00:14]} b6 {[%emt 0:00:23]} 37. Rg7 {[%emt 0:00:22]} Re6 {[%emt 0:00:14]} 38.
Bxe5+ {[%emt 0:00:13]} Kxe5 {[%emt 0:00:03]} 39. Nf4 {[%emt 0:00:02]} Rc6 {
[%emt 0:00:03]} 40. Rxg6 {[%emt 0:00:21]} Rxg6 {[%emt 0:00:08]} 41. Nxg6+ {
[%emt 0:00:00]} Kf5 {[%emt 0:00:05]} 42. Nf4 {[%emt 0:00:02]} a5 {[%emt 0:00:
12]} 43. bxa5 {[%emt 0:00:05]} bxa5 {[%emt 0:00:01]} 44. Nxh5 {[%emt 0:00:03]}
a4 {[%emt 0:00:04]} 45. Nf4 {[%emt 0:00:02]} Ke4 {[%emt 0:00:07]} 46. h5 {
[%emt 0:00:03]} Nc6 {[%emt 0:00:04]} 47. h6 {[%emt 0:00:03]} d4 {[%emt 0:00:01]
} 48. h7 {[%emt 0:00:04]} 1-0

[Event "European Rapid Championship 2021"]
[Site "Katowice"]
[Date "2021.12.19"]
[Round "7.27"]
[White "Kyc, Jerzy"]
[Black "Liodakis, Konstantinos-Spyros"]
[Result "1-0"]
[ECO "C63"]
[WhiteElo "2308"]
[BlackElo "2114"]
[Annotator "NA"]
[PlyCount "65"]
[EventDate "2021.12.18"]
[EventType "swiss"]
[EventCountry "POL"]
[SourceTitle "playchess.com"]
[Source "ChessBase"]
[SourceQuality "1"]
[TimeControl "900+10"]

1. e4 {[%emt 0:00:02]} e5 {[%emt 0:00:01]} 2. Nf3 {[%emt 0:00:01]} Nc6 {
[%emt 0:00:01]} 3. Bb5 {[%emt 0:00:01]} f5 {[%emt 0:00:01]} 4. Nc3 {[%emt 0:00:
02]} fxe4 {[%emt 0:00:05]} 5. Nxe4 {[%emt 0:00:01]} d5 {[%emt 0:00:05]} 6. Ng3
{[%emt 0:00:07]} e4 {[%emt 0:01:01]} 7. Qe2 {[%emt 0:00:42]} Qe7 {[%emt 0:01:
39]} 8. Nd4 {[%emt 0:00:11]} Bd7 {[%emt 0:00:02]} 9. Nxc6 {[%emt 0:00:15]} bxc6
{[%emt 0:00:02]} 10. Ba4 {[%emt 0:00:04]} Nf6 {[%emt 0:00:06]} 11. Qa6 {
[%emt 0:01:54]} Qc5 {[%emt 0:01:03]} 12. O-O {[%emt 0:00:45]} Bd6 {[%emt 0:00:
22]} 13. c3 {[%emt 0:01:15]} Bxg3 {[%emt 0:00:50]} 14. hxg3 {[%emt 0:00:06]}
O-O {[%emt 0:00:03]} 15. d4 {[%emt 0:00:07]} exd3 {[%emt 0:00:58]} 16. Qxd3 {
[%emt 0:00:30]} Ng4 {[%emt 0:01:33]} 17. Qd4 {[%emt 0:00:36]} Qd6 {[%emt 0:00:
02]} 18. Bf4 {[%emt 0:00:19]} Qg6 {[%emt 0:00:23]} 19. f3 {[%emt 0:01:00]} Nf6
{[%emt 0:00:15]} 20. Bxc7 {[%emt 0:02:13]} c5 {[%emt 0:00:49]} 21. Qh4 {
[%emt 0:00:02]} Bf5 {[%emt 0:02:24]} 22. Bd6 {[%emt 0:01:01]} Rfc8 {[%emt 0:00:
02]} 23. Be5 {[%emt 0:00:47]} Nd7 {[%emt 0:00:43]} 24. Rfe1 {[%emt 0:01:17]}
Nb6 {[%emt 0:01:07]} 25. Bb5 {[%emt 0:00:44]} c4 {[%emt 0:00:34]} 26. g4 {
[%emt 0:01:25]} Bd3 {[%emt 0:00:57]} 27. Bd4 {[%emt 0:01:12]} Rc7 {[%emt 0:01:
20]} 28. Re7 {[%emt 0:01:11]} Qd6 {[%emt 0:01:31]} 29. Rae1 {[%emt 0:00:12]} a6
{[%emt 0:00:36]} 30. Rxc7 {[%emt 0:00:05]} Qxc7 {[%emt 0:00:14]} 31. Re7 {
[%emt 0:00:02]} Qf4 {[%emt 0:00:01]} 32. Rxg7+ {[%emt 0:00:03]} Kf8 {[%emt 0:
00:02]} 33. Qe7# {[%emt 0:00:01]} 1-0

[Event "European Rapid Championship 2021"]
[Site "Katowice"]
[Date "2021.12.19"]
[Round "7.28"]
[White "Kowalski, Igor"]
[Black "Koziorowicz, Michal"]
[Result "0-1"]
[ECO "A48"]
[WhiteElo "2295"]
[BlackElo "2041"]
[Annotator "NA"]
[PlyCount "102"]
[EventDate "2021.12.18"]
[EventType "swiss"]
[EventCountry "POL"]
[SourceTitle "playchess.com"]
[Source "ChessBase"]
[SourceQuality "1"]
[TimeControl "900+10"]

1. d4 {[%emt 0:00:01]} Nf6 {[%emt 0:00:01]} 2. Nf3 {[%emt 0:00:02]} g6 {
[%emt 0:00:03]} 3. Bf4 {[%emt 0:00:07]} Bg7 {[%emt 0:00:02]} 4. e3 {[%emt 0:00:
02]} d5 {[%emt 0:00:20]} 5. c3 {[%emt 0:00:33]} O-O {[%emt 0:01:06]} 6. h3 {
[%emt 0:00:07]} c5 {[%emt 0:00:12]} 7. dxc5 {[%emt 0:00:17]} Ne4 {[%emt 0:00:
24]} 8. Be5 {[%emt 0:00:57]} f6 {[%emt 0:00:30]} 9. Bh2 {[%emt 0:00:46]} Nxc5 {
[%emt 0:00:35]} 10. Be2 {[%emt 0:00:02]} Nc6 {[%emt 0:00:09]} 11. O-O {[%emt 0:
00:04]} e5 {[%emt 0:00:13]} 12. Nbd2 {[%emt 0:00:18]} Be6 {[%emt 0:00:23]} 13.
b4 {[%emt 0:00:37]} Nd7 {[%emt 0:00:02]} 14. Nb3 {[%emt 0:00:02]} Qb6 {[%emt 0:
00:41]} 15. Rc1 {[%emt 0:00:36]} Kh8 {[%emt 0:01:38]} 16. a4 {[%emt 0:01:06]}
a5 {[%emt 0:00:34]} 17. b5 {[%emt 0:00:03]} Ne7 {[%emt 0:00:01]} 18. c4 {
[%emt 0:00:02]} dxc4 {[%emt 0:00:57]} 19. Bxc4 {[%emt 0:00:02]} Bxc4 {[%emt 0:
00:08]} 20. Rxc4 {[%emt 0:00:01]} Rfd8 {[%emt 0:00:02]} 21. Qc1 {[%emt 0:02:48]
} Qe6 {[%emt 0:02:17]} 22. Nfd2 {[%emt 0:01:03]} Nd5 {[%emt 0:01:39]} 23. Qa1 {
[%emt 0:03:33]} Bf8 {[%emt 0:00:20]} 24. Rfc1 {[%emt 0:01:38]} Bb4 {[%emt 0:00:
24]} 25. Bg3 {[%emt 0:01:00]} N7b6 {[%emt 0:00:34]} 26. R4c2 {[%emt 0:00:59]}
Rac8 {[%emt 0:00:44]} 27. Ne4 {[%emt 0:00:53]} Rxc2 {[%emt 0:00:23]} 28. Rxc2 {
[%emt 0:00:01]} Qf5 {[%emt 0:00:06]} 29. f3 {[%emt 0:00:53]} Nxe3 {[%emt 0:00:
02]} 30. Rc1 {[%emt 0:00:01]} Nec4 {[%emt 0:01:21]} 31. Rd1 {[%emt 0:01:04]}
Rxd1+ 32. Qxd1 {[%emt 0:00:01]} Kg7 {[%emt 0:00:47]} 33. Qd8 {[%emt 0:00:11]}
Qe6 {[%emt 0:00:35]} 34. Bh4 {[%emt 0:00:45]} g5 {[%emt 0:00:13]} 35. Bf2 {
[%emt 0:00:01]} Nxa4 {[%emt 0:00:32]} 36. h4 {[%emt 0:00:00]} h6 {[%emt 0:00:
45]} 37. g4 {[%emt 0:00:13]} Qe7 {[%emt 0:00:21]} 38. Qd3 {[%emt 0:00:23]} Nab2
{[%emt 0:00:02]} 39. Qc2 {[%emt 0:00:10]} a4 {[%emt 0:00:01]} 40. Nc1 {[%emt 0:
00:00]} Qd7 {[%emt 0:00:11]} 41. Kg2 {[%emt 0:00:15]} Qd1 {[%emt 0:00:09]} 42.
Qb1 {[%emt 0:00:01]} a3 {[%emt 0:00:15]} 43. Ng3 {[%emt 0:00:15]} Qxf3+ {
[%emt 0:00:19]} 44. Kh3 {[%emt 0:00:13]} h5 {[%emt 0:00:31]} 45. hxg5 {[%emt 0:
00:04]} Qxg4+ {[%emt 0:00:06]} 46. Kh2 {[%emt 0:00:06]} Qh4+ {[%emt 0:00:07]}
47. Kg2 {[%emt 0:00:02]} Qxg5 {[%emt 0:00:00]} 48. Na2 {[%emt 0:00:06]} h4 {
[%emt 0:00:20]} 49. Qe4 {[%emt 0:00:10]} hxg3 {[%emt 0:00:04]} 50. Qxb7+ {
[%emt 0:00:01]} Kh6 {[%emt 0:00:05]} 51. Bxg3 {[%emt 0:00:09]} Be1 {[%emt 0:00:
01]} 0-1